{"text_format":"1","workbook":"xlsx","n_sheets":9,"sheets":["Pilot Tracker Title Sheet","1 Post Plant Gradation (PPG)","2 Statistical Pay Factor (SPF)","3- 10% RAP in RHMA-G","4 High RAP in HMA","5 RAS in HMA","6 IPR","7 Asphalt Rubber Chip Seal","8 Contact List"],"not_rendered":{"charts":0,"images":0,"macros":1,"external_links":0,"defined_names":0,"comments":2,"pivot_tables":0},"unopened":[],"bounds":{"document_bytes":16777216,"sheet_cells":100000,"rows_first":2000,"rows_last":500,"rows_between":2000,"halvings":0,"cell_chars":16384,"cell_head_chars":4096},"cells_cut":0,"cells_raw":0,"read":"whole","date_system":"1900"}

{"sheet":"Pilot Tracker Title Sheet","index":0,"n_rows":15,"n_cols":9,"rows_kept":15,"cut":false,"hidden":false,"merged":[[0,0,0,14]]}
["Asphalt Pilot Project Tracker"]
[]
[null,null,null,null,null,"Sheet 1 - Post Plant Gradation (PPG)-  Use aggregate gradation from post plant material for acceptance"]
[null,null,null,null,null,"Sheet 2 - Statistical Pay Factor (SPF) - Develop PWL specifcations based on the use of gyratory compactor (including air void pay factor)  "]
[null,null,null,null,null,"Sheet 3 - 10% RAP in HMA - Allow 10% RAP in RHMA-G"]
[null,null,null,null,null,"Sheet 4 - High RAP in HMA - Allow contractor option for up to 40% binder replacement using RAP"]
[null,null,null,null,null,"Sheet 5 - RAS in HMA - Allow contractor option for up to 3% RAS "]
[null,null,null,null,null,"Sheet 6 - In-Place Recycling (IPR)"]
[null,null,null,null,null,"Sheet 7 - Asphalt Rubber Chip Seal"]
[null,null,null,null,null,"Sheet 8 - Caltrans Contact Information"]
[]
[]
[null,null,null,null,null,"24-Month Look Ahead for Projects:",null,null,"Projects List Webpage for 24-month look ahead"]
[]
[null,null,null,null,null,"Scoping Documents: ",null,"PMPC Asphalt Task Group (ATG) Webpage "]

{"sheet":"1 Post Plant Gradation (PPG)","index":1,"n_rows":24,"n_cols":18,"rows_kept":24,"cut":false,"hidden":false,"merged":[]}
["Item","Project Name","EA","Project Fund","CO","RTE","PM","Target RTL","Target Award","FY Construction","CT Data Collection Contact","Required Data Collected Yes/No","Data Evaluated by WPG Yes/No","If Data Collection Incomplete, Why","CCO or Bid","District Contact","Notes","Status Update:\n10/08/2025"]
[1,"Post Plant Gradation","01-0K970","SB1, HM","MEN",20,"0/0","2022-03-01","2022-06-09","21/22","Maged Armanuse","No",null,null,"bid","Kassaye Seyoum, RE","CFD 21-22  PPG nSSP","End Proj: 6/25/23"]
[{"$f":"1+A2","v":2},"Post Plant Gradation","02-1J460","HM ","SIS",96,"34/92","2020-10-12","2021-02-02","20/21","Maged Armanuse","No",null,null,"CCO","Kristen Kingsley, RE","PPG data collection via CO","End Proj:12/31/22"]
[{"$f":"1+A3","v":3},"Post Plant Gradation","02-1J470","HM ","TRI",3,"46/68","2020-10-13","2020-12-18","20/21","Maged Armanuse","No",null,null,"CCO","Mandir Grewal, RE","PPG data collection via CO","End Proj:12/31/22"]
[{"$f":"1+A4","v":4},"Post Plant Gradation","02-2J390","HM ","SHA",44,"45/52","2021-09-22","2021-11-16","21/22","Maged Armanuse","No",null,null,"bid","Ed Wordon, RE","PPG nSSP will be included ","End Proj: 9/5/23"]
[5,"Post Plant Gradation","02-2J410","HM ","THE",36,"L0/6","2021-09-23","2021-11-30","21/22","Maged Armanuse","No",null,null,"bid","Joel Gasik, RE","PPG nSSP Approved","End Proj: 5/8/23"]
[6,"Post Plant Gradation","04-0W360","HM ","SM",114,"5/6",null,"2022-06-17","21/22","Maged Armanuse","No",null,null,"bid","Thilakaratne, Vijith ","PPG nSSP will be included ","End Proj: 3/27/25"]
[7,"Post Plant Gradation","04-1W940","HM ","ALA",260,"R0/R2",null,"2022-06-24","21/22","Maged Armanuse","No",null,null,"bid","Thilakaratne, Vijith ","PPG nSSP will be included ","End Proj: 3/27/25"]
[8,"Post Plant Gradation","05-1M010",null,"MON",68,"R16/20","2020-10-30","2021-04-20","20/21","Maged Armanuse","No",null,null,"CCO","Baljinder Brar, RE","PPG data collection via CO","Unavailable"]
[9,"Post Plant Gradation","05-1N690",null,"SLO",101,"42/46","2021-11-22","2022-01-04","21/22","Maged Armanuse","No",null,null,"bid","Sandeep Gill, RE","RBWC, PPG nSSP will be included ","Unavailable"]
[10,"Post Plant Gradation","05-1N700",null,"SLO",166,"16/21","12-2021","2022-04-22","21/22","Maged Armanuse","No",null,null,"bid","Patrick Stimson / Thomas Peterson?; RE","CIR, PPG nSSP will be included ","Unavailable"]
[11,"Post Plant Gradation","09-38610","HM ","MNO",395,"25/35","2022-03-08","2022-05-27","21/22","Maged Armanuse","No",null,null,"bid","Rick Moberly, RE ","PPG nSSP will be included ","End Proj: 11/12/24"]
[12,"Post Plant Gradation","09-38860","HM ","INY",395,"102/113","2022-01-15","2022-05-11","21/22","Maged Armanuse","No",null,null,"bid","Damon Cherenzia/George Elzawy (Subject to change); RE  ","PPG nSSP will be included ","End Proj: 6/28/24"]
[13,"Post Plant Gradation","09-38880","HM ","KER",58,"123/125","2022-01-15","2022-04-21","21/22","Maged Armanuse","No",null,null,"bid","Hin Hartanto , RE  ","PPG nSSP will be included ","End Proj: 5/6/24"]
[14,"Post Plant Gradation","10-1N070",null,"MER",33,"13/16","2022-01-24","2022-04-07","21/22","Maged Armanuse","No",null,null,"bid","MUHAMMAD RAHMAN, RE","PPG nSSP Approved","Unavailable"]
[15,"Post Plant Gradation","11-12380",null,"SD",125,"13/22","2021-08-13","2022-04-27","21/22","Maged Armanuse","No",null,null,"bid","Sultan Ghazialam, RE","PPG nSSP included, Paving 2023"]
[16,"Post Plant Gradation","11-43051",null,"SD",15,"R31/R37","2021-06-30","2022-05-27","21/22","Maged Armanuse","No",null,null,"bid","Tai Lam, RE","PPG nSSP included","In construction\nContract Accept: 5/29/26\nEnd Proj: 4/24/28"]
[]
[null,"construction completed, data being collected"]
[null,"construction in progress"]
[]
["Item being studied: Gradation of the material after it is processed at the plant. "]
["Evaluation Plan: Districts are tasked with data collection. The PPG WPG is setting up a smaller group to do the data evaluation. "]
["bold","Awarded date"]

{"sheet":"2 Statistical Pay Factor (SPF)","index":2,"n_rows":19,"n_cols":23,"rows_kept":19,"cut":false,"hidden":false,"merged":[]}
["Item","Project Name","EA","Fund","CO","RTE","BKPM","AHPM","Target RTL","Target Award","FY Construction","CT Data Collection Contact","Required Data Collected Yes/No","Data Evaluated by WPG Yes/No","If data Collection Incomplete, Report Status","CCO or Bid","HMA-A","RHMA-G","Status","District PM","Target PSE","General Notes","Status Update:\n10/08/2025"]
[1,"Solomon Canyon CAPM","05-1G130","SHOPP","SB","001","M29.9",49.2,"2020-01-02T17:00:00","2020-07-08","20/21","Mirak Mehari ","Yes","Yes","Complete ","bid",null,21600,"yes","Borders, Justin","2019-07-26","both NS bid items in BEES","End Proj: 5/22/23"]
[{"$f":"1+A2","v":2},"McMullin Grade CAPM","06-0X310","SHOPP","FRE","145",20.28,26.1,"2021-01-28","2021-06-09","21/22","Mirak Mehari ","Yes","Yes","Complete ","bid",19191,null,"yes","Aguilar-Luna, Judy","2021-01-28","both NS bid items in BEES","End Proj: 11/16/23"]
[{"$f":"1+A3","v":3},"Long Barn CAPM","10-46210","SHOPP","TUO","108",18.899999999999999,38.799999999999997,"2021-02-24","2021-08-02","21/22","Mirak Mehari ","Yes","Yes","Complete ","bid",81700,null,"yes","Marlo Carlos","2020-09-15","both NS bid items in BEES","End Proj: 4/22/25"]
[4,"Santa Maria CAPM","05-1G970","SHOPP","SB","135",11.7,17.79,"2021-04-06","2021-09-27","21/22","Mirak Mehari ","Yes","Yes","Complete ","bid",null,46600,"yes","Miles, Barak","2020-09-15","both NS bid items in BEES","End Proj: 12/15/25"]
[5,"Reward CAPM","06-0X350","SHOPP","KER","058",6,15.4,"2021-04-27","2021-09-28","21/22","Mirak Mehari ","Yes","Yes","Complete ","bid",26400,null,"yes","Gandrathi, Sunil","2020-12-28","both NS bid items in BEES","End Proj: 8/1/26"]
[6,"SR 29 York to 128 Split CAPM","04-4J300","SHOPP","NAP","029",29.3,36.9,"2021-06-11","2022-02-16","21/22","Mirak Mehari ","Yes","Yes","Complete ","bid",17800,16900,"yes","Chang, Daniel","2021-05-18","3 NS bid items in BEES","End Proj: 2/27/2025"]
[7,"TRINIDAD CAPM","01-0F820","SHOPP","HUM","101","R90.1",109.6,"2021-06-28","2022-01-27","21/22","Mirak Mehari/ Clinton Edmiston","No","No","Complete ","bid",null,85100,"yes","Yang, Powell","2021-04-30","both NS bid items in BEES","Contract Accept: 1/31/2024"]
[8,"Ranchos Rehab","06-0R210","SHOPP","MAD","041",6.2,"R9.2","2022-06-07","2023-01-18","22/23","Mirak Mehari/ Clinton Edmiston","No","No",null,"bid",28000,null,"HMA-OG","Gardner, Chris","2021-02-10","both NS bid items in BEES","Contract accept: 06/26/25"]
[9,"CAPM SR-84","04-0K780","SHOPP","SM","084",21.5,25.7,"2023-05-04","2023-11-15","23/24","Clinton Edmiston","No","No",null,"bid",null,31300,"yes","Pardo, Rommel","2022-06-17","both NS bid items in BEES","Contract accept: 07/31/25"]
[10,"Overlay AC","07-32290","SHOPP","LA","027",0,18.600000000000001,"2023-04-21","2023-11-30","23/24","Clinton Edmiston","No","No",null,"bid",46700,72300,"yes","Miraaney, David","2022-12-01","3 NS bid items in AWP","Requested update from Everett Lee (asst PM)"]
[11,"Gaviota-Nojoqui CAPM","05-1H860","SHOPP","SB","101",46.2,"R52.34","2022-06-14","2023-02-01","22/23","Mirak Mehari/ Clinton Edmiston","No","No",null,"bid",null,50500,"yes","Borders, Justin","2021-12-01","both NS bid items in BEES","Contract accept: 12/17/25"]
[12,"North Buellton CAPM & Drainage","05-1M100","SHOPP","SB",101,"R56.09",65,"2025-05-01","2025-10-21","25/26","Clinton Edmiston","No","No",null,"bid",null,35300,"yes","Holden, Hallie D.","2021-12-01",null,"Adverstised"]
[]
[null,"construction completed"]
[null,"construction in progress"]
[null,"construction not started"]
["Evaluation Plan: Construction is tasked with data collection.  Data evaluation is to be performed by the SPF evaluation group."]
["bold","awarded"]

{"sheet":"3- 10% RAP in RHMA-G","index":3,"n_rows":14,"n_cols":18,"rows_kept":14,"cut":false,"hidden":false,"merged":[]}
["Item","Project Name","EA","Project Fund","CO","RTE","PM","Target RTL","Target Award","FY Construction","CT Data Collection Contact","Required Data Collected Yes/No","Data Evaluated by WPG Yes/No","If data Collection Incomplete, Report Status","CCO or Bid","District Contact","Notes","Status Update:\n10/08/2025"]
[1,"10% RAP in RHMA-G","02-1J500","HM, SB1","PLU",70,"10/25","2021-01-26","2021-03-30","20/21","Kee Foo",null,null,null,"CCO","Webb, Michael (PM)","pilot cancelled"]
[{"$f":"1+A2","v":2},"10% RAP in RHMA-G","11-2N116","HM","IMP",186,"0/2.1","2021-12-30","2022-06-09","22/23","Kee Foo",null,null,null,"bid","Baha, Hamed","Paving completed.\nProject has been completed and closed out per Hamed Baha (10/8/25).","End Proj: 5/6/2025"]
[3,"10% RAP in RHMA-G","04-1W890","HM","SON",1,"7.1/19.7","2022-01-15","2022-06-15","21/22","Kee Foo",null,null,null,"bid","Thilakaratne, Vijith","Paving completed","End Proj: 3/7/2025"]
[4,"10% RAP in RHMA-G","04-1W880","HM","SON",101,"54.2/56.2","2021-12-15","2022-06-22","21/22","Kee Foo",null,null,null,"bid","Thilakaratne, Vijith","Paving completed","End Proj: 3/7/2025"]
[5,"10% RAP in RHMA-G","07-0W140","HM, SB1","VEN",1,"4.4/9.7","2022-04-14","2022-06-24","21/22","Kee Foo",null,null,null,"bid","Crispi, Paul","paving in April 2023. Project is schedule to end on 12/1/2025.","End Proj: 12/1/2025"]
[6,"10% RAP in RHMA-G","05-1P160","HM","SLO",41,"0/11.45","2022-12-31","2023-04-14","23/24","Kee Foo",null,null,null,null,"Andrew Rose",null,"Update unavailable"]
[7,"10% RAP in RHMA-G","08-1J720","SHOPP","SBD",40,"0/15","2024-05-01","2024-11-15","24/25","Kee Foo",null,null,null,"bid","Parwaz Khasraw","air voids is 3 percent\nCurrently in construction as of 10/8/25, and the anticipated CCA is mid-July 2026","Contract accept: 7/10/26\n"]
[]
[null,"construction completed, test sections being monitored"]
[null,"construction in progress"]
["bold","Awarded"]
[]
["Evaluation Plan for 10% RAP: UCPRC will test and monitor pilot sections"]

{"sheet":"4 High RAP in HMA","index":4,"n_rows":13,"n_cols":18,"rows_kept":13,"cut":false,"hidden":false,"merged":[]}
["Item","Project Name","EA","Project Fund","CO","RTE","PM","Target RTL","Target Award","FY Construction","CT Data Collection Contact","Required Data Collected Yes/No","Data Evaluated by WPG Yes/No","If data Collection Incomplete, Report Status","CCO or Bid","District Contact","Notes","Status Update:\n10/08/2025"]
[1,"High RAP","02-1J490","HM, SB1","TEH",32,"14/20","2020-11-18","2021-02-02","20/21","Kee Foo",null,null,null,"CCO","Webb, Michael (PM)","in construction"]
[{"$f":" 1+A2","v":2},"High RAP","08-1M110","HM","SBD",215,"10/17.2","2021-12-15","2022-03-14","21/22","Kee Foo","Yes","Yes",null,"bid","Mike Ristic","JMF review complete, Paved Aug 8-10, testing started June 2022","2024-03-01"]
[{"$f":" 1+A3","v":3},"High RAP","10-1J200","HM, SB1","SJ",26,"8/17.8","2022-01-15","2022-04-14","21/22","Kee Foo","Yes","Yes",null,"bid","Bonnetti-Ramirez, Karen ","JMF review in progress, Paving Sep 18-19, testing started July 2022","unavailable"]
[4,"High RAP","04-2K720","SHOPP","CC",4,"14.3/24.3","2022-06-30","2023-03-23","22/23","Kee Foo",null,null,null,"bid","Nam Ngo (PM)","CC-4 CAPM\nFinish date (PRSM) 8/12/2025 ","Contract Accept: 6/29/25\nEnd Proj: 12/30/2026"]
[5,"High RAP","07-3237U","SHOPP","VEN","150","R13.3/19","2022-06-29","2023-03-27","22/23","Kee Foo",null,null,null,"bid","Kibe, Joseph (PM)","CapM\nProject to be CCA by mid November 2025.","Contract Accept: 10/24/2025\nEnd Proj: 5/3/27"]
[6,"High RAP","02-4H050","SHOPP","SHA","var","var","2023-06-20","2023-09-26","23/24","Kee Foo",null,null,null,"bid","Orr, Eric D (PM)","Lake Boulevard Pavement","Update unavailable"]
[]
[null,"construction completed, test sections being monitored"]
[null,"construction in progress"]
["bold","Awarded"]
[]
["Evaluation Plan: UCPRC to test and monitor pilot sections"]

{"sheet":"5 RAS in HMA","index":5,"n_rows":8,"n_cols":18,"rows_kept":8,"cut":false,"hidden":false,"merged":[]}
["Item","Project Name","EA","Project Fund","CO","RTE","PM","Target RTL","Target Award","FY Construction","CT Data Collection Contact","Required Data Collected Yes/No","Data Evaluated by WPG Yes/No","If data Collection Incomplete, Report Status","CCO or Bid","District Contact","Notes","Status Update:\n10/08/2025"]
[1,"RAS in HMA-A","03-2G100","HM, SB1","ED",49,"9.6/14.2","2021-03-10","2021-05-13","20/21","Kee Foo","Yes","Yes",null,"bid","Cephas Hurr","construction complete","Contract Accept: 1/3/22;\n End Proj: 11/16/2022\n"]
[]
[null,"construction completed, test sections being monitored"]
[null,"construction in progress"]
["bold","Awarded"]
[]
["Evaluation Plan: UCPRC to test and monitor pilot sections"]

{"sheet":"6 IPR","index":6,"n_rows":20,"n_cols":17,"rows_kept":20,"cut":false,"hidden":false,"merged":[]}
["Item","Project Name","EA","Project Fund","CO","RTE","PM","Target RTL","Target Award","FY Construction","CT Data Collection Contact","Required Data Collected Yes/No","Data Evaluated by WPG Yes/No","If data Collection Incomplete, Report Status","CCO or Bid","District Contact","Notes"]
[1,"Partial Depth Recycling with Foamed Asphalt (PDR-FA) and Additional Fines","03-2G110","HM, SB1","GLE",162,"66.6/76.3","2021-02-22","2021-05-05","20/21","Leo Mahserelli/ Joe Hammack",null,null,null,"CCO","Key, Jennifer (PM)","Evaluate the addition of fines into the recycled mix - Construction complete"]
[2,"Partial Depth Recycling with Emulsified Asphalt (PDR-EA) vs. Partial Depth Recycling with Foamed Asphalt (PDR-FA)","05-1N170","HM ","SB",135,"1.0/R7.2","2020-12-30","2021-04-12","20/21","Leo Mahserelli/ Joe Hammack",null,null,null,"CCO","Kelly Mcclain","Single-unit vs. multi-unit recyclers and performance evaluation of PDR-EA vs. PDR-FA - Construction complete. "]
[3,"Partial Depth Recycling with Emulsified Asphalt (PDR-EA) Gradations","08-1L660","HM ","SBD",2,"0.0/6.4","2021-01-19","2021-06-01","20/21","Leo Mahserelli/ Joe Hammack",null,null,null,"CCO","Parwaz Khasraw /Mike Ristic","Single-unit vs. multi-unit recyclers and performance evaluation of maximum gradation sizes using PDR-EA. - Construction complete."]
[4,"High Rubber Content PDR","11-2N114","HM","IMP",78,"34/41","2021-12-16","2022-06-29","22/23","Leo Mahserelli/ Joe Hammack",null,null,null,"bid","Hamed Baha","Recycle existing rubberized AC at a higher percentage than the current guidelines - PDR (0.25'CIR with 0.15' RHMA-G overlay) - Construction complete. "]
[5,"CCPR","08-1H491","HM","SBD",18,"53.1/69","2023-03-22","2023-05-16","23/24","Leo Mahserelli/ Joe Hammack",null,null,null,"bid","Mike Ristic","pilot planned on PM56-58 - Construction complete. "]
[6,"CCPR","06-1E610","HM","TUL",63,"2.0/4.0","2022-11-30","2023-04-06","23/24","Leo Mahserelli/ Joe Hammack",null,null,null,"bid","Rene Sanchez","Construction Complete."]
[7,"CCPR with Portland Lime Cement","02-4J900","SHOPP","SIS",161,"15/17.6","2023-09-19","2024-01-16","24/25","Leo Mahserelli/ Joe Hammack",null,null,null,"bid","Rick Kuykendall","Construction Complete."]
[8,"PDR with Portland Lime Cement","05-1Q470 ","HM","SLO",58,"51/57.15","2023-12-31","2024-04-30","24/25","Leo Mahserelli/ Joe Hammack",null,null,null,"bid","Andrew Rose","Construction complete July 2025."]
[9,"PDR with Portland Lime Cement","09-39230 ","HM","MNO",120,"32.1/R35","2023-12-31","2024-04-01","24/25","Leo Mahserelli/ Joe Hammack",null,null,null,"bid","Justin Castleberry","Construction complete July 2025."]
[10,"Supplemental Aggregate","05-1R730","HM","SB",135,"8.4/9.4","2024-12-31","2025-04-30","25/26","Leo Mahserelli/ Joe Hammack",null,null,null,"bid","Jason Torres","Construction in Progress"]
[11,"Marshall Compactor vs Vibratory Compactor","02-1K070 ","HM","LAS",139,"12.0/14.0","2024-12-13","2025-03-14","25/26","Leo Mahserelli/ Joe Hammack",null,null,null,"bid","Daniel Gibbs","Planned September 2025. NB and SB"]
[12,"Marshall Compactor vs Vibratory Compactor","06-1G820 ","HM","FRE",33,"53.4/61.3","2024-12-31","2025-04-01","25/26","Leo Mahserelli/ Joe Hammack",null,null,null,"bid","Gurjot Gill\nHamza Mustafa","Planned September 2025 NB and SB"]
[]
[]
[null,"construction completed, test sections being monitored"]
[null,"construction in progress"]
["bold","Awarded"]
[]
["Evaluation Plan: UCPRC and CP2 test and monitor pilot sections"]

{"sheet":"7 Asphalt Rubber Chip Seal","index":7,"n_rows":9,"n_cols":18,"rows_kept":9,"cut":false,"hidden":false,"merged":[]}
["Item","Project Name","EA","Project Fund","CO","RTE","PM","Target RTL","Target Award","FY Construction","CT Data Collection Contact","Required Data Collected Yes/No","Data Evaluated by WPG Yes/No","If data Collection Incomplete, Report Status","CCO or Bid","District Contact","Notes","Status Update:\n10/08/2025"]
[1,"Asphalt rubber chip seal","02-1J440","HM ","MOD",299,"20.0/ 37.5","2020-10-12","2020-12-14","20/21","Sri Holikatti","no","no","CP2 plans to collect data summer 2023","CCO","Jeff Steppat","Chip seal using Type 3 binder; replace 2,400 LBS of High Natural rubber with Polymerized Tire Rubber (PTR) - Construction complete","Pilot Project not thru PMPC\nEnd Proj: 12/31/2022"]
[2,"Asphalt rubber chip seal & replace AC surfacing","02-1J520","HM ","MOD/ SIS",139,"34.0/50.7, 0.0/5.0","2020-12-22","2021-03-02","20/21","Sri Holikatti","no","no","CP2 plans to collect data summer 2023","CCO","Jeff Steppat","Chip seal using Type 3 binder; replace 2,400 LBS of High Natural rubber with Polymerized Tire Rubber (PTR) - Construction complete","Pilot Project not thru PMPC\nEnd Proj: 12/31/2022"]
[]
[null,"construction completed, test sections being monitored"]
[null,"construction in progress"]
["bold","Awarded"]
[]
["Evaluation Plan: CP2 test and monitor pilot sections"]

{"sheet":"8 Contact List","index":8,"n_rows":25,"n_cols":6,"rows_kept":25,"cut":false,"hidden":false,"merged":[[1,2,10,2],[12,3,12,4],[12,1,12,2],[12,5,12,6],[1,3,1,4]]}
[]
["Item","Pilot Project Title",null,"HQ Contact"]
[1,"Post Plant Gradation (PPG)",null,"Kee Foo/Raguparan Thangavelautham/Clinton"]
[2,"Statistical Pay Factor (SPF)",null,"Mirak Mehari/Kee Foo & Hadi Nabizadeh/Soroosh Amelian"]
[3,"10% RAP in RHMA-G",null,"Kee Foo "]
[4,"High RAP in HMA",null,"Saeed Pourtahmasb / Jessaneil Perez"]
[5,"RAS in HMA",null,"Saeed Pourtahmasb / Jessaneil Perez"]
[6,"Cold Central Plant Recycling",null,"Leo Mahserelli"]
[7,"Partial Depth Recycling (PDR)",null,"Leo Mahserelli"]
[8,"Asphalt Rubber Chip Seal",null,"Steve Lee"]
[9,"Non-PMPC Pilots",null,"Sri Holikatti"]
[]
[null,"District Contact (Maintenance)",null,"District Contact (Materials)",null,"HM1 Coordinator"]
[null,"D01: Stan Brandenburg",null,"D01: Tai-Aqua Morgan Marbet",null,"D01: Jonathan Szabo; Jane Nordstrom"]
[null,"D02: Brandon Trent",null,"Byron Berger",null,"D02: Rick Kuykendall"]
[null,"D03: Anthony Thurman",null,"D03: Addisu Workineh",null,"D03: Andrew Martin"]
[null,"D04: Vijith Thilakaratne",null,"D04: Mohammad Dehghanfard; Mohammad Zabolzadeh; Jacon Duncan (A)",null,"Lidia Gaitan"]
[null,"D05: Andrew Rose",null,"D05: Daniel Gingras",null,"D05: Andrew Rose"]
[null,"D06: Gurpaul Bath (Acting)",null,"D06: Raafat Shehata",null,"D06: Eltahir Ataelgeed"]
[null,"D07: Paul Crispi",null,"D07: Victor Zengler, Huey-Min Tsou, Nader Gobran",null,"D07: Mohd Haque"]
[null,"D08: Mike Ristic",null,"D08: Cristina Paredes, Brain Teh, Zihui Li, Sittampalam Satishkumar",null,"D08: John Cai"]
[null,"D09: Justin Castleberry",null,"D09: Chris Talbot",null,"D09: Vacant / Contact: Justin Castleberry"]
[null,"D10: Scott Uch",null,"D10: Mandeep Dhesi",null,"D10: Mohammad Nasser"]
[null,"D11: Hamed Baha",null,"D11: Benjamin Haney",null,"D11: Hamed Baha"]
[null,"D12: Susan Fong",null,"D12: Behdad Baseghi",null,"D12: Anh Tran"]